bitfinex-derivatives/quotes_BNBF0:USTF0_20250521
["timestamp","ask_amount","ask_price","bid_price","bid_amount"]
[1747792487226,1.319,651.34,650.47,0.58892512]
[1747792487417,1.319,651.34,650.48,0.58892512]
[1747792487621,1.319,651.34,650.44,0.30744607]
[1747792487918,1.319,651.34,650.45,0.5889656]
[1747792488124,0.26741153,651.33,650.46,0.5889656]
[1747792488418,0.26741153,651.33,650.47,0.5889656]
[1747792488721,0.26741153,651.33,650.48,0.5889656]
[1747792488921,0.26741153,651.33,650.45,1.64944607]
[1747792489219,0.26741153,651.33,650.46,0.58896135]
[1747792489524,0.26741153,651.33,650.47,0.89640742]
[1747792489719,3.80452173,651.5,650.48,0.58895202]
[1747792489918,3.80452173,651.5,650.47,0.30744607]
[1747792490125,3.80452173,651.5,650.48,0.5889515]
[1747792490323,3.80452173,651.5,650.47,0.30744607]
[1747792490526,3.80452173,651.5,650.48,0.58851818]
[1747792490724,3.80452173,651.5,650.48,0.30744607]
[1747792491025,0.26736427,651.49,650.48,0.30744607]
[1747792491626,1.257,651.48,650.48,0.30744607]
[1747792491930,1.257,651.48,650.45,1.342]
[1747792492225,1.257,651.48,650.46,0.58850639]
[1747792492422,1.257,651.48,650.47,0.58850639]
[1747792492626,1.257,651.48,650.48,0.58850639]
[1747792492823,1.257,651.48,650.45,1.342]
[1747792493027,1.257,651.48,650.46,0.58849538]
[1747792493228,0.26736633,651.47,650.47,0.58849538]
[1747792493427,0.26736633,651.47,650.48,0.58849538]
[1747792493628,0.26736633,651.47,650.45,1.342]
[1747792493928,0.26736633,651.47,650.46,0.58848915]
[1747792494229,0.26736633,651.47,650.47,0.58848915]
[1747792494427,0.26736633,651.47,650.48,0.58848248]
[1747792494630,0.26736633,651.47,650.45,1.342]
[1747792494829,0.26736633,651.47,650.46,0.58848247]
[1747792495030,0.26736633,651.47,650.45,1.342]
[1747792495434,0.26736633,651.47,650.46,0.30744637]
[1747792495830,1.257,651.48,650.46,0.30744637]
[1747792497125,0.26751534,651.47,650.45,1.342]
[1747792497430,0.26751534,651.47,650.28,0.257001]
[1747792500428,0.26751534,651.47,649.78,0.954]
[1747792504838,1.257,651.48,649.78,0.954]
[1747792505034,0.2675863,651.46,649.78,0.954]
[1747792507737,1.257,651.48,649.78,0.954]
[1747792508140,0.26758013,651.45,649.78,0.954]
[1747792510845,1.257,651.48,649.78,0.954]
[1747792511238,0.2675719,651.44,649.78,0.954]
[1747792513739,3.80452173,651.71,649.78,0.954]
[1747792515045,0.26754002,651.7,649.78,0.954]
[1747792515446,1.62554002,651.7,649.78,0.954]
[1747792519850,1.358,651.7,649.78,0.954]
[1747792520256,0.26754104,651.69,649.78,0.954]
[1747792522853,1.358,651.7,649.78,0.954]
[1747792523154,0.26754104,651.68,649.78,0.954]
[1747792525255,3.80452173,651.46,649.78,0.954]
[1747792526251,0.26755956,651.45,649.78,0.954]
[1747792528953,3.80452173,651.46,649.78,0.954]
[1747792530154,0.2675575,651.45,649.78,0.954]
[1747792531859,3.80452173,651.46,649.78,0.954]
[1747792532061,0.26754104,651.44,649.78,0.954]
[1747792537066,1.60954104,651.44,649.78,0.954]
[1747792537866,1.342,651.44,649.78,0.954]
[1747792538067,0.26754104,651.43,649.78,0.954]
[1747792540864,1.342,651.44,649.78,0.954]
[1747792541064,0.26753487,651.42,649.78,0.954]
[1747792543870,1.342,651.44,649.78,0.954]
[1747792545069,0.26753487,651.43,649.78,0.954]
[1747792549771,1.342,651.44,649.78,0.954]
[1747792551076,0.26753487,651.43,649.78,0.954]
[1747792555780,1.342,651.44,649.78,0.954]
[1747792556079,0.26753487,651.42,649.78,0.954]
[1747792557378,0.26753487,651.42,649.79,0.62161238]
[1747792557581,0.26753487,651.42,649.78,0.954]
[1747792557876,0.26753487,651.42,649.79,0.62161238]
[1747792558079,0.26753487,651.42,649.57,0.26753487]
[1747792558280,0.26753487,651.42,649.58,0.6216083]
[1747792558475,0.26753487,651.42,649.59,1.70059715]
[1747792558678,0.26753487,651.42,649.6,0.6216083]
[1747792558879,0.26753487,651.42,649.61,1.70059715]
[1747792559079,0.26753487,651.42,649.62,0.62170039]
[1747792559276,0.26753487,651.42,649.63,0.62170039]
[1747792559580,1.302,651.41,649.64,1.70068924]
[1747792559781,1.302,651.41,649.65,0.62170039]
[1747792560082,1.302,651.41,649.66,1.70068924]
[1747792560280,1.302,651.41,649.67,0.62170039]
[1747792560481,1.302,651.41,649.68,1.70068924]
[1747792560677,1.302,651.41,649.69,0.62177059]
[1747792560877,1.302,651.41,649.7,0.62177059]
[1747792561083,1.302,651.41,649.71,0.62177059]
[1747792561282,1.302,651.41,649.72,0.62177059]
[1747792561580,1.302,651.41,649.73,1.70075944]
[1747792561783,1.302,651.41,649.74,0.62177059]
[1747792561981,1.302,651.41,649.75,0.62177059]
[1747792562182,1.302,651.41,649.76,0.62177059]
[1747792562482,1.302,651.41,649.77,0.62177059]
[1747792562680,1.302,651.41,649.78,0.62177059]
[1747792562882,1.302,651.41,649.79,0.62177059]
[1747792563077,1.302,651.41,649.8,0.62177059]
[1747792563382,1.302,651.41,649.71,0.927]
[1747792563682,1.302,651.41,649.72,1.70143966]
[1747792563880,1.302,651.41,649.73,1.70143966]
[1747792564077,1.302,651.41,649.74,1.70143966]
[1747792564283,1.302,651.41,649.75,0.6219163]
[1747792564478,1.302,651.41,649.76,0.6219163]
[1747792564677,1.302,651.41,649.77,0.6219163]
[1747792564877,1.302,651.41,649.78,0.6219163]
[1747792565084,1.302,651.41,649.79,0.6219163]
[1747792565283,1.302,651.41,649.8,0.6219163]
[1747792565483,1.302,651.41,649.81,0.62208714]
[1747792565779,1.302,651.41,649.82,0.62208714]
[1747792565979,1.302,651.41,649.71,0.927]
[1747792570386,3.80452173,651.43,649.71,0.927]
[1747792573787,1.007,651.42,649.71,0.927]
[1747792579494,3.80452173,651.11,649.71,0.927]
[1747792579994,0.26763158,651.1,649.71,0.927]
[1747792582899,3.80452173,651.11,649.71,0.927]
[1747792584202,0.26763158,651.1,649.71,0.927]
[1747792585904,3.80452173,651.11,649.71,0.927]
[1747792586102,0.2676254,651.09,649.71,0.927]
[1747792586404,0.2676254,651.09,649.33,0.2676254]
[1747792586704,0.2676254,651.09,649.34,1.70276406]
[1747792586908,0.2676254,651.09,649.35,1.70276406]
[1747792587199,0.2676254,651.09,649.36,1.70276406]
[1747792587399,0.2676254,651.09,649.37,1.70276406]
[1747792587599,0.2676254,651.09,649.38,0.62219361]
[1747792587805,0.2676254,651.09,649.39,0.62219361]
[1747792588005,0.2676254,651.09,649.4,0.62219361]
[1747792588202,0.2676254,651.09,649.41,0.62219361]
[1747792588404,0.2676254,651.09,649.42,1.70276406]
[1747792588701,0.2676254,651.09,649.43,2.01056945]
[1747792588905,0.2676254,651.09,649.44,0.62219361]
[1747792589106,0.2676254,651.09,649.45,0.62219361]
[1747792589299,0.2676254,651.09,649.46,0.929999]
[1747792589505,0.2676254,651.09,649.47,0.62219361]
[1747792589804,0.2676254,651.09,649.48,0.62219361]
[1747792590106,0.2676254,651.09,649.49,0.929999]
[1747792590306,0.2676254,651.09,649.49,2.04480539]
[1747792591906,3.80452173,650.88,649.5,0.30780539]
[1747792593007,3.80452173,650.88,649.51,0.30780539]
[1747792594212,3.80452173,650.88,649.52,0.30780539]
[1747792595408,3.80452173,650.88,649.53,1.07962982]
[1747792595612,3.80452173,650.88,649.54,0.9296952]
[1747792595811,3.80452173,650.88,649.55,1.70151963]
[1747792596107,0.26765834,650.87,649.56,0.62188981]
[1747792596312,0.26765834,650.87,649.57,1.70151963]
[1747792596506,0.26765834,650.87,649.58,0.62188981]
[1747792596710,0.26765834,650.87,649.59,0.62188981]
[1747792596912,0.26765834,650.87,649.6,0.62188981]
[1747792597111,0.26765834,650.87,649.61,0.62188981]
[1747792597410,0.26765834,650.87,649.62,0.62188981]
[1747792597611,0.26765834,650.87,649.63,0.62188981]
[1747792597813,0.26765834,650.87,649.64,0.62188981]
[1747792598014,3.80452173,650.88,649.49,1.737]
[1747792598213,3.80452173,650.88,649.5,1.70167331]
[1747792598516,3.80452173,650.88,649.51,0.62180732]
[1747792598712,3.80452173,650.88,649.52,0.62180732]
[1747792598911,3.80452173,650.88,649.53,0.62180732]
[1747792599109,0.26766966,650.87,649.54,0.62180732]
[1747792599309,0.26766966,650.87,649.55,1.70161198]
[1747792599510,0.26766966,650.87,649.56,0.62180732]
[1747792599711,0.26766966,650.87,649.57,0.62180732]
[1747792600010,0.26766966,650.87,649.58,0.62180732]
[1747792600211,0.26766966,650.87,649.59,0.62180732]
[1747792600412,0.26766966,650.87,649.6,0.62180732]
[1747792600611,0.26766966,650.87,649.61,0.62180732]
[1747792600814,3.80452173,650.88,649.62,0.92961218]
[1747792601113,3.80452173,650.88,649.63,0.62180732]
[1747792601313,3.80452173,650.88,649.64,0.62180732]
[1747792601510,3.80452173,650.88,649.62,0.30780486]
[1747792601714,3.80452173,650.88,649.63,0.62183801]
[1747792601914,3.80452173,650.88,649.64,0.62183801]
[1747792602112,0.26767584,650.87,649.62,0.30780486]
[1747792602311,0.26767584,650.87,649.63,0.62185854]
[1747792602511,0.26767584,650.87,649.64,0.62185854]
[1747792602716,0.26767584,650.87,649.65,0.62185854]
[1747792603017,0.26767584,650.87,649.49,1.737]
[1747792603316,0.26767584,650.87,649.5,1.70187598]
[1747792603518,0.26767584,650.87,649.51,0.9296722]
[1747792603812,3.80452173,650.88,649.52,0.62188389]
[1747792604011,3.80452173,650.88,649.53,1.70189183]
[1747792604216,1.061,650.87,649.54,0.62188389]
[1747792604410,1.061,650.87,649.55,1.70189183]
[1747792604611,1.061,650.87,649.56,0.62188389]
[1747792604819,1.061,650.87,649.57,1.70189183]
[1747792605015,1.061,650.87,649.58,0.62188389]
[1747792605216,1.061,650.87,649.59,0.62188389]
[1747792605217,0.26766966,650.86,649.59,0.62188389]
[1747792605418,0.26766966,650.86,649.6,0.62194881]
[1747792605716,0.26766966,650.86,649.61,0.62194881]
[1747792605917,0.26766966,650.86,649.57,0.30780416]
[1747792605918,0.26766966,650.86,649.62,0.62194881]
[1747792606114,0.26766966,650.86,649.63,0.62194881]
[1747792606317,0.26766966,650.86,649.57,0.30780416]
[1747792606517,0.26766966,650.86,649.64,1.138]
[1747792606914,1.061,650.87,649.64,1.138]
[1747792607113,0.26766142,650.85,649.64,1.138]
[1747792610017,1.061,650.87,649.64,1.138]
[1747792611122,0.26768613,650.86,649.64,1.138]
[1747792612926,1.061,650.87,649.64,1.138]
[1747792614123,0.26768613,650.86,649.64,1.138]
[1747792618927,1.061,650.87,649.64,1.138]
[1747792620226,0.26766966,650.86,649.64,1.138]
[1747792621824,1.061,650.87,649.64,1.138]
[1747792623131,0.2676676,650.86,649.64,1.138]
[1747792625032,1.061,650.87,649.64,1.138]
[1747792625231,0.2676676,650.85,649.64,1.138]
[1747792628046,1.061,650.87,649.64,1.138]
[1747792628233,0.26768407,650.84,649.64,1.138]
[1747792630838,0.95,650.83,649.64,1.138]
[1747792631837,3.80452173,650.81,649.64,1.138]
[1747792634239,0.2677026,650.8,649.64,1.138]
[1747792635641,0.2677026,650.8,649.21,0.257001]
[1747792635843,0.2677026,650.8,649.22,1.70947985]
[1747792636044,0.2677026,650.8,649.23,0.62322935]
[1747792636343,0.2677026,650.8,649.24,1.70947985]
[1747792636642,0.2677026,650.8,649.25,0.62322935]
[1747792636844,3.80452173,650.81,649.26,0.62322935]
[1747792637042,3.80452173,650.81,649.27,1.70947985]
[1747792637243,3.80452173,650.81,649.28,1.70947985]
[1747792637444,3.80452173,650.81,649.29,0.62322935]
[1747792637644,3.80452173,650.81,649.3,1.70947985]
[1747792637846,3.80452173,650.81,649.31,0.62322935]
[1747792638048,3.80452173,650.81,649.32,0.62322935]
[1747792638243,0.26774174,650.8,649.33,2.01736873]
[1747792638441,0.26774174,650.8,649.34,0.62322935]
[1747792638641,0.26774174,650.8,649.35,1.70947985]
[1747792638846,0.26774174,650.8,649.36,0.62322935]
[1747792639045,0.26774174,650.8,649.37,0.62322935]
[1747792639245,0.26774174,650.8,649.38,0.62322935]
[1747792639546,0.26774174,650.8,649.39,1.70947985]
[1747792639745,0.26774174,650.8,649.4,0.62322935]
[1747792639945,3.80452173,650.81,649.41,0.62322935]
[1747792640145,3.80452173,650.81,649.42,0.62322935]
[1747792640347,0.26773556,650.79,649.43,0.62322935]
[1747792640646,0.26773556,650.79,649.44,0.62322935]
[1747792640850,0.26773556,650.79,649.45,0.62322935]
[1747792641142,0.26773556,650.79,649.46,0.62322935]
[1747792641344,0.26773556,650.79,649.4,0.30788888]
[1747792641646,0.26773556,650.79,649.41,0.93094844]
[1747792641946,0.26773556,650.79,649.42,0.62305956]
[1747792642146,0.26773556,650.79,649.43,0.62305956]
[1747792642348,0.26773556,650.79,649.44,0.62305956]
[1747792642647,0.26773556,650.79,649.45,0.62305956]
[1747792642843,0.26773556,650.79,649.46,0.62305956]
[1747792643049,3.80452173,650.81,649.47,0.62305956]
[1747792643348,0.26772938,650.78,649.41,0.30788888]
[1747792643548,0.26772938,650.78,649.42,0.62300872]
[1747792643751,0.26772938,650.78,649.43,0.62300872]
[1747792643950,0.26772938,650.78,649.44,0.62300872]
[1747792644145,0.26772938,650.78,649.45,0.62300872]
[1747792644352,0.26772938,650.78,649.46,0.62300872]
[1747792644650,0.26772938,650.78,649.35,1.696]
[1747792644850,0.26772938,650.78,649.36,0.62293453]
[1747792645051,0.26772938,650.78,649.37,1.7070378]
[1747792645249,0.26772938,650.78,649.38,0.62293453]
[1747792645443,0.26772938,650.78,649.37,1.08410327]
[1747792645444,0.26772938,650.78,649.39,0.62293453]
[1747792645650,0.26772938,650.78,649.4,1.7070378]
[1747792645843,9.16140715,650.81,649.41,0.62293453]
[1747792646044,9.16140715,650.81,649.42,1.7070378]
[1747792646252,3.80452173,650.63,649.43,0.62293453]
[1747792646453,3.80452173,650.63,649.44,1.70700839]
[1747792646646,3.80452173,650.63,649.45,0.62290512]
[1747792646849,3.80452173,650.63,649.46,0.62290512]
[1747792647049,3.80452173,650.63,649.47,0.62290512]
[1747792647252,3.80452173,650.63,649.48,0.62290512]
[1747792647548,3.80452173,650.63,649.49,0.62290512]
[1747792647746,3.80452173,650.63,649.5,0.62290512]
[1747792647951,3.80452173,650.63,649.51,0.62290512]
[1747792648248,3.80452173,650.63,649.35,1.696]
[1747792648448,3.80452173,650.63,649.36,1.70707479]
[1747792648651,3.80452173,650.63,649.37,0.62297206]
[1747792648849,3.80452173,650.63,649.38,1.70707479]
[1747792649150,0.26773865,650.62,649.39,0.62297206]
[1747792649348,0.26773865,650.62,649.4,0.62297206]
[1747792649552,0.26773865,650.62,649.41,0.62297206]
[1747792649849,0.26773865,650.62,649.42,1.70707479]
[1747792650054,0.26773865,650.62,649.43,0.93082748]
[1747792650353,0.26773865,650.62,649.44,1.70704123]
[1747792650553,0.26773865,650.62,649.45,0.6229385]
[1747792650754,0.26773865,650.62,649.46,0.6229385]
[1747792650950,0.26773865,650.62,649.47,0.6229385]
[1747792651149,0.26773865,650.62,649.48,0.6229385]
[1747792651349,0.26773865,650.62,649.49,0.6229385]
[1747792651550,0.26773865,650.62,649.5,0.6229385]
[1747792651751,0.26773865,650.62,649.51,0.6229385]
[1747792651952,3.80452173,650.63,649.52,0.6229385]
[1747792652153,3.80452173,650.63,649.35,1.696]
[1747792652354,0.26773453,650.61,649.36,1.70732658]
[1747792652654,0.26773453,650.61,649.37,0.62301265]
[1747792652850,0.26773453,650.61,649.38,1.70732658]
[1747792653054,0.26773453,650.61,649.39,0.62301265]
[1747792653258,0.26773453,650.61,649.4,1.70732658]
[1747792653556,0.953,650.6,649.41,2.0152645]
[1747792653751,0.953,650.6,649.42,0.62306137]
[1747792653953,0.953,650.6,649.43,0.62306137]
[1747792654153,0.953,650.6,649.44,0.62306137]
[1747792654353,0.953,650.6,649.45,0.62306137]
[1747792654556,0.953,650.6,649.46,0.62306137]
[1747792654754,0.953,650.6,649.47,0.62306137]
[1747792655054,0.953,650.6,649.35,1.696]
[1747792655055,0.953,650.6,649.48,0.62306137]
[1747792655256,0.26774998,650.59,649.49,0.62306137]
[1747792655457,0.26774998,650.59,649.5,0.62306137]
[1747792655761,0.26774998,650.59,649.35,1.696]
[1747792655954,0.26774998,650.59,649.36,1.70729096]
[1747792656154,0.26774998,650.59,649.37,0.6231082]
[1747792656357,0.26774998,650.59,649.38,1.70729096]
[1747792656556,0.26774998,650.59,649.39,0.6231082]
[1747792656759,0.26774998,650.59,649.4,0.6231082]
[1747792657057,0.26774998,650.59,649.41,0.9310125]
[1747792657255,0.26774998,650.59,649.42,1.70729096]
[1747792657455,0.26774998,650.59,649.43,0.6231082]
[1747792657655,0.26774998,650.59,649.44,0.6231082]
[1747792657857,0.26774998,650.59,649.45,0.6231082]
[1747792658055,0.26774998,650.59,649.46,0.6231082]
[1747792658260,0.26774998,650.59,649.47,0.6231082]
[1747792658457,0.26774998,650.59,649.48,0.6231082]
[1747792658656,0.26774998,650.59,649.49,0.6231082]
[1747792658860,0.26774998,650.59,649.5,0.6231082]
[1747792659058,3.80452173,650.5,649.51,0.6231082]
[1747792659261,3.80452173,650.5,649.49,0.3079043]
[1747792659458,3.80452173,650.5,649.5,0.62333229]
[1747792659757,3.80452173,650.5,649.51,0.62333229]
[1747792659960,3.80452173,650.5,649.49,0.3079043]
[1747792660161,3.80452173,650.5,649.5,0.62333057]
[1747792660359,3.80452173,650.5,649.51,0.62339229]
[1747792660563,3.80452173,650.5,649.5,0.3079043]
[1747792660764,3.80452173,650.5,649.51,0.62339122]
[1747792660965,3.80452173,650.5,649.5,0.3079043]
[1747792661164,3.80452173,650.5,649.51,0.62339122]
[1747792661463,3.80452173,650.5,649.52,0.62339122]
[1747792661766,3.80452173,650.5,649.35,1.696]
[1747792661960,3.80452173,650.5,649.36,1.70831912]
[1747792662166,3.80452173,650.5,649.37,0.6234598]
[1747792662368,0.26777264,650.49,649.38,1.70831912]
[1747792662665,0.26777264,650.49,649.39,0.6234598]
[1747792662866,0.26777264,650.49,649.4,0.6234598]
[1747792663067,0.26777264,650.49,649.41,1.70831912]
[1747792663268,0.26777264,650.49,649.42,0.6234598]
[1747792663469,0.26777264,650.49,649.43,1.70831912]
[1747792663668,0.26777264,650.49,649.44,0.6234598]
[1747792663968,3.80452173,650.5,649.45,1.7086062]
[1747792664168,3.80452173,650.5,649.46,1.7086062]
[1747792664368,3.80452173,650.5,649.47,0.6234598]
[1747792664568,3.80452173,650.5,649.48,0.6234598]
[1747792664768,3.80452173,650.5,649.49,0.6234598]
[1747792664964,3.80452173,650.5,649.5,0.6234598]
[1747792665170,0.26775822,650.49,649.51,0.6234598]
[1747792665370,0.26775822,650.49,649.52,0.6234598]
[1747792665567,0.26775822,650.49,649.53,0.62384123]
[1747792665773,0.26775822,650.49,649.54,0.62384123]
[1747792665973,0.26775822,650.49,649.49,0.30790308]
[1747792666168,0.26775822,650.49,649.45,1.076]
[1747792666169,0.26775822,650.49,649.5,0.62384034]
[1747792666367,0.26775822,650.49,649.51,0.62384034]
[1747792666569,0.26775822,650.49,649.52,0.62384034]
[1747792666774,0.26775822,650.49,649.53,0.62384034]
[1747792666973,3.80452173,650.5,649.54,0.62384034]
[1747792667172,3.80452173,650.5,649.55,0.62384034]
[1747792667468,3.80452173,650.5,649.45,1.076]
[1747792667671,3.80452173,650.5,649.46,0.62412639]
[1747792667867,3.80452173,650.5,649.47,1.71008345]
[1747792668167,0.26776131,650.49,649.48,0.62412639]
[1747792668367,0.26776131,650.49,649.49,1.71008345]
[1747792668571,0.26776131,650.49,649.5,0.62412639]
[1747792668768,0.26776131,650.49,649.51,0.62412639]
[1747792668972,0.26776131,650.49,649.52,0.62412639]
[1747792669174,0.26776131,650.49,649.53,0.62412639]
[1747792669381,0.26776131,650.49,649.5,0.30790407]
[1747792669382,0.26776131,650.49,649.54,0.62412639]
[1747792669677,0.26776131,650.49,649.55,0.62412639]
[1747792669868,0.26776131,650.49,649.55,0.30790407]
[1747792670074,3.80452173,650.5,649.55,0.30790407]
[1747792671175,0.26776234,650.49,649.55,0.30790407]
[1747792671376,0.26776234,650.49,649.45,1.076]
[1747792671576,0.26776234,650.49,649.46,0.62409734]
[1747792671774,0.26776234,650.49,649.47,1.71010858]
[1747792671975,0.26776234,650.49,649.48,0.62409734]
[1747792672181,0.26776234,650.49,649.49,1.71010858]
[1747792672372,0.26776234,650.49,649.5,0.62409734]
[1747792672572,0.26776234,650.49,649.51,0.62409734]
[1747792672775,0.26776234,650.49,649.52,0.62409734]
[1747792672973,3.80452173,650.5,649.53,0.62409734]
[1747792673273,3.80452173,650.5,649.54,0.62409734]
[1747792673578,0.953,650.6,649.55,0.62409734]
[1747792673872,0.953,650.6,649.54,0.30790405]
[1747792674078,0.2677644,650.59,649.54,0.30790405]
[1747792674678,0.2677644,650.59,649.45,1.076]
[1747792675880,0.953,650.6,649.45,1.076]
[1747792677182,0.26776852,650.59,649.45,1.076]
[1747792678888,0.953,650.6,649.45,1.076]
[1747792680183,0.2677747,650.59,649.45,1.076]
[1747792683288,0.2677747,650.59,649.02,0.257001]
[1747792683481,0.2677747,650.59,649.03,0.62354737]
[1747792683683,1.414,650.58,649.04,1.70937076]
[1747792683883,1.414,650.58,649.05,0.62354737]
[1747792684086,1.414,650.58,649.06,0.62354737]
[1747792684388,1.414,650.58,649.07,1.70937076]
[1747792684687,1.414,650.58,649.05,0.30796901]
[1747792684688,1.414,650.58,649.08,1.70937076]
[1747792684891,1.414,650.58,649.09,0.62354737]
[1747792685091,1.414,650.58,649.1,0.62354737]
[1747792685291,0.26782313,650.57,649.11,0.62354737]
[1747792685487,0.26782313,650.57,649.12,1.70937076]
[1747792685686,0.26782313,650.57,649.13,0.93148407]
[1747792685991,0.26782313,650.57,649.14,1.70933845]
[1747792686190,0.26782313,650.57,649.15,0.62351506]
[1747792686385,0.26782313,650.57,649.16,0.62351506]
[1747792686586,0.26782313,650.57,649.17,0.62351506]
[1747792686886,0.26782313,650.57,649.18,1.70933845]
[1747792687090,0.26782313,650.57,649.19,0.62351506]
[1747792687291,0.26782313,650.57,649.2,1.70933845]
[1747792687491,0.26782313,650.57,649.21,1.70933845]
[1747792687694,0.26782313,650.57,649.22,0.62351506]
[1747792687893,0.26782313,650.57,649.23,0.62351506]
[1747792688097,0.26782313,650.57,649.24,0.62351506]
[1747792688289,0.26782313,650.57,649.25,1.70933845]
[1747792688489,0.26782313,650.57,649.26,0.62351506]
[1747792688691,0.26782313,650.57,649.27,0.62351506]
[1747792688890,0.26782313,650.57,649.28,0.62351506]
[1747792689093,0.26782313,650.57,649.29,0.62351506]
[1747792689286,0.26782313,650.57,649.22,0.30796901]
[1747792689486,0.26782313,650.57,649.23,0.62341634]
[1747792689694,0.26782313,650.57,649.24,0.62341634]
[1747792689895,0.26782313,650.57,649.25,0.62341634]
[1747792690094,0.26782313,650.57,649.26,0.62341634]
[1747792690394,0.26782313,650.57,649.27,0.62341634]
[1747792690594,0.26782313,650.57,649.12,1.352]
[1747792690794,0.26782313,650.57,649.13,0.62330367]
[1747792690994,1.414,650.58,649.14,0.62330367]
[1747792691190,1.414,650.58,649.15,2.01151249]
[1747792691392,0.26783653,650.56,649.16,0.62330367]
[1747792691591,0.26783653,650.56,649.17,0.62330367]
[1747792691796,0.26783653,650.56,649.18,1.70350624]
[1747792691995,0.26783653,650.56,649.19,0.62330367]
[1747792692200,0.26783653,650.56,649.2,1.70350624]
[1747792692494,5.35688542,650.47,649.21,0.62330367]
[1747792692696,5.35688542,650.47,649.22,1.7032493]
[1747792692897,5.35688542,650.47,649.23,1.7032493]
[1747792693099,5.35688542,650.47,649.24,0.62304673]
[1747792693295,5.35688542,650.47,649.25,0.62304673]
[1747792693497,5.35688542,650.47,649.26,0.62304673]
[1747792693694,5.35688542,650.47,649.27,0.93105298]
[1747792693897,5.35688542,650.47,649.28,0.62304673]
[1747792694098,5.35688542,650.47,649.29,0.62304673]
[1747792694297,5.35688542,650.47,649.27,0.30800625]
[1747792694504,5.35688542,650.47,649.28,0.62294886]
[1747792694696,5.35688542,650.47,649.29,0.62294886]
[1747792694900,5.35688542,650.47,649.27,0.30800625]
[1747792695099,5.35688542,650.47,649.28,0.62294705]
[1747792695302,5.35688542,650.47,649.27,0.30800625]
[1747792695503,5.35688542,650.47,649.28,0.62290288]
[1747792695803,5.35688542,650.47,649.12,1.352]
[1747792696002,5.35688542,650.47,649.13,1.70270993]
[1747792696202,5.35688542,650.47,649.14,0.62290177]
[1747792696502,5.35688542,650.47,649.15,1.70271002]
[1747792696699,5.35688542,650.47,649.16,0.62290177]
[1747792696898,5.35688542,650.47,649.17,1.70271002]
[1747792697101,5.35688542,650.47,649.18,1.70271002]
[1747792697302,5.35688542,650.47,649.19,0.62290177]
[1747792697502,5.35688542,650.47,649.2,0.62290177]
[1747792697705,5.35688542,650.47,649.21,0.62290177]
[1747792697905,5.35688542,650.47,649.22,0.62290177]
[1747792698107,5.35688542,650.47,649.23,1.70271002]
[1747792698409,0.26783137,650.46,649.24,0.62290177]
[1747792698606,0.26783137,650.46,649.23,1.07980825]
[1747792698803,0.26783137,650.46,649.24,0.62355903]
[1747792699000,0.26783137,650.46,649.12,1.352]
[1747792699202,0.26783137,650.46,649.13,0.62355967]
[1747792699405,0.26783137,650.46,649.14,0.62355967]
[1747792699705,0.26783137,650.46,649.15,1.7034048]
[1747792699908,5.35688542,650.47,649.16,0.62350485]
[1747792700102,5.35688542,650.47,649.17,0.62350485]
[1747792700305,5.35688542,650.47,649.18,1.7034048]
[1747792700504,5.35688542,650.47,649.19,0.62350485]
[1747792700704,5.35688542,650.47,649.2,0.62350485]
[1747792700912,5.35688542,650.47,649.19,1.07989995]
[1747792701211,0.26783859,650.46,649.16,0.30800229]
[1747792701413,0.26783859,650.46,649.17,0.62350917]
[1747792701605,0.26783859,650.46,649.18,0.62350917]
[1747792701808,0.26783859,650.46,649.12,1.352]
[1747792702007,0.26783859,650.46,649.13,1.70411904]
[1747792702311,0.26783859,650.46,649.14,0.62347996]
[1747792702514,0.26783859,650.46,649.15,0.62347996]
[1747792702708,0.26783859,650.46,649.16,0.62347996]
[1747792702912,1.233,650.45,649.12,1.352]
[1747792703110,1.233,650.45,649.13,0.62338076]
[1747792703311,1.233,650.45,649.14,0.62338076]
[1747792703610,1.233,650.45,649.15,0.62338076]
[1747792703914,1.233,650.45,649.12,1.352]
[1747792704115,1.233,650.45,649.13,0.6232983]
[1747792704316,0.26785405,650.44,649.14,0.6232983]
[1747792704515,0.26785405,650.44,649.15,0.6232983]
[1747792704816,0.26785405,650.44,649.12,1.352]
[1747792705111,0.26785405,650.44,649.13,0.62321755]
[1747792705311,0.26785405,650.44,649.12,1.352]
[1747792706011,1.233,650.45,649.12,1.352]
[1747792706614,0.26788601,650.44,649.12,1.352]
[1747792708915,1.233,650.45,649.12,1.352]
[1747792709216,0.26788601,650.43,649.12,1.352]
[1747792711719,0.26788601,650.43,648.71,0.26788601]
[1747792712018,0.26788601,650.43,648.72,0.93049524]